Workbook

Sheet BREAKEVEN ANALYSIS
B1: BREAKEVEN ANALYSIS
B2: [Name]
B4: AMOUNTS SHOWN IN U.S. DOLLARS
B5: SALES
B6: SALES PRICE PER UNIT | C6: $12.50
B7: SALES VOLUME PER PERIOD (UNITS) | C7: 1,000
B8: TOTAL SALES | C8: =IF(OR(Sales_price_unit<>0,Sales_volume_units<>0),Sales_price_unit*Sales_volume_units,0) -> $12,500.00
B10: VARIABLE COSTS
B11: COMMISSION PER UNIT | C11: $2.00
B12: DIRECT MATERIAL PER UNIT | C12: $2.50
B13: SHIPPING PER UNIT | C13: $1.10
B14: SUPPLIES PER UNIT | C14: $0.80
B15: OTHER VARIABLE COSTS PER UNIT | C15: $1.20
B16: VARIABLE COSTS PER UNIT | C16: =IF(SUM(Variable_costs_unit),SUM(Variable_costs_unit),0) -> $7.60
B17: TOTAL VARIABLE COSTS | C17: =IF(Variable_Unit_Cost,Variable_Unit_Cost*Sales_volume_units,0) -> $7,600.00
B19: UNIT CONTRIBUTION MARGIN | C19: =IF(Sales_price_unit>0,MAX(0,Sales_price_unit-Variable_Unit_Cost),0) -> 4.90
B20: GROSS MARGIN | C20: =IF(OR(Total_Sales<>0,Total_variable<>0),Total_Sales-Total_variable,0) -> $4,900.00
B22: FIXED COSTS PER PERIOD
B23: ADMINISTRATIVE COSTS | C23: $1,200.00
B24: INSURANCE | C24: $500.00
B25: PROPERTY TAX | C25: $150.00
B26: RENT | C26: $800.00
B27: OTHER FIXED COSTS | C27: $750.00
B28: TOTAL FIXED COSTS PER PERIOD | C28: =IF(SUM(Fixed_costs)<>0,SUM(Fixed_costs),0) -> $3,400.00
B30: NET PROFIT (LOSS) | C30: =IF(OR(Gross_margin<>0,Total_fixed<>0),Gross_margin-Total_fixed,0) -> $1,500.00
B32: RESULTS
B33: BREAKEVEN POINT (UNITS): | C33: =IF(AND(Unit_contrib_margin>0,Total_fixed>0),Total_fixed/Unit_contrib_margin,"-") -> 693.88
B35: SALES VOLUME ANALYSIS:
B36: SALES VOLUME PER PERIOD (UNITS) | C36: =IF(Sales_volume_units,Sales_volume_units*0,0) -> 0 | D36: =IF(Sales_volume_units,Sales_volume_units*0.1,0) -> 100 | E36: =IF(Sales_volume_units,Sales_volume_units*0.2,0) -> 200 | F36: =IF(Sales_volume_units,Sales_volume_units*0.3,0) -> 300 | G36: =IF(Sales_volume_units,Sales_volume_units*0.4,0) -> 400 | H36: =IF(Sales_volume_units,Sales_volume_units*0.5,0) -> 500 | I36: =IF(Sales_volume_units,Sales_volume_units*0.6,0) -> 600 | J36: =IF(Sales_volume_units,Sales_volume_units*0.7,0) -> 700 | K36: =IF(Sales_volume_units,Sales_volume_units*0.8,0) -> 800 | L36: =IF(Sales_volume_units,Sales_volume_units*0.9,0) -> 900 | M36: =Sales_volume_units -> 1,000
B37: SALES PRICE PER UNIT | C37: =Sales_price_unit -> $12.50 | D37: $12.50 | E37: $12.50 | F37: $12.50 | G37: $12.50 | H37: $12.50 | I37: $12.50 | J37: $12.50 | K37: $12.50 | L37: $12.50 | M37: $12.50
B38: FIXED COSTS PER PERIOD | C38: =Total_fixed -> $3,400.00 | D38: $3,400.00 | E38: $3,400.00 | F38: $3,400.00 | G38: $3,400.00 | H38: $3,400.00 | I38: $3,400.00 | J38: $3,400.00 | K38: $3,400.00 | L38: $3,400.00 | M38: $3,400.00
B39: VARIABLE COSTS | C39: =Variable_Unit_Cost*C36 -> $0.00 | D39: $760.00 | E39: $1,520.00 | F39: $2,280.00 | G39: $3,040.00 | H39: $3,800.00 | I39: $4,560.00 | J39: $5,320.00 | K39: $6,080.00 | L39: $6,840.00 | M39: $7,600.00
B40: TOTAL COSTS | C40: =SUM(C38:C39) -> $3,400.00 | D40: $4,160.00 | E40: $4,920.00 | F40: $5,680.00 | G40: $6,440.00 | H40: $7,200.00 | I40: $7,960.00 | J40: $8,720.00 | K40: $9,480.00 | L40: $10,240.00 | M40: $11,000.00
B41: TOTAL SALES | C41: =C37*C36 -> $0.00 | D41: $1,250.00 | E41: $2,500.00 | F41: $3,750.00 | G41: $5,000.00 | H41: $6,250.00 | I41: $7,500.00 | J41: $8,750.00 | K41: $10,000.00 | L41: $11,250.00 | M41: $12,500.00
B42: NET PROFIT (LOSS) | C42: =C41-C40 -> ($3,400.00) | D42: ($2,910.00) | E42: ($2,420.00) | F42: ($1,930.00) | G42: ($1,440.00) | H42: ($950.00) | I42: ($460.00) | J42: $30.00 | K42: $520.00 | L42: $1,010.00 | M42: $1,500.00
